[Event "Titled Tuesday Blitz June 27 Late 2023"]
[White "Rosen, Eric"]
[Black "Torres Dominguez, David"]
[WhiteFideId "2032562"]
[BlackFideId "2220857"]
[WhiteElo "2674"]
[BlackElo "2109"]
[Result "1-0"]
[Round "2"]
[TimeControl "180+2"]
[Date "2023.06.27"]
[WhiteClock "0:00:03"]
[BlackClock "0:00:00"]
[Board "88"]

1. d4 {[%clk 0:03:00]}  e5 {[%clk 0:02:59]} 2. dxe5 {[%clk 0:02:58]}  d6 {[%clk 0:02:59]} 3. Nf3 {[%clk 0:02:57]}  Bg4 {[%clk 0:02:59]} 4. Bg5 {[%clk 0:02:52]}  Qd7 {[%clk 0:02:59]} 5. Nc3 {[%clk 0:02:48]}  Nc6 {[%clk 0:02:58]} 6. exd6 {[%clk 0:02:36]}  Bxd6 {[%clk 0:02:59]} 7. Nb5 {[%clk 0:02:37]}  Nge7 {[%clk 0:02:13]} 8. Nxd6+ {[%clk 0:02:36]}  cxd6 {[%clk 0:02:14]} 9. e4 {[%clk 0:02:20]}  O-O-O {[%clk 0:02:06]} 10. h3 {[%clk 0:02:04]}  Bh5 {[%clk 0:02:02]} 11. Be2 {[%clk 0:02:01]}  Qe6 {[%clk 0:01:59]} 12. Qd3 {[%clk 0:01:41]}  Kb8 {[%clk 0:01:46]} 13. O-O {[%clk 0:01:35]}  f6 {[%clk 0:01:32]} 14. Be3 {[%clk 0:01:30]}  Bg6 {[%clk 0:01:23]} 15. Nd2 {[%clk 0:01:26]}  d5 {[%clk 0:01:22]} 16. Qb3 {[%clk 0:01:06]}  Bxe4 {[%clk 0:01:04]} 17. Nxe4 {[%clk 0:01:06]}  Qxe4 {[%clk 0:01:04]} 18. c3 {[%clk 0:00:59]}  g5 {[%clk 0:00:55]} 19. Bf3 {[%clk 0:00:57]}  Qe5 {[%clk 0:00:51]} 20. Rfe1 {[%clk 0:00:57]}  Qc7 {[%clk 0:00:49]} 21. Qa3 {[%clk 0:00:53]}  h5 {[%clk 0:00:46]} 22. Bxa7+ {[%clk 0:00:51]}  Kc8 {[%clk 0:00:11]} 23. Bc5 {[%clk 0:00:50]}  Nf5 {[%clk 0:00:07]} 24. Qa8+ {[%clk 0:00:16]}  Nb8 {[%clk 0:00:06]} 25. Ba7 {[%clk 0:00:12]}  Nh4 {[%clk 0:00:06]} 26. Bd1 {[%clk 0:00:04]}  Rhe8 {[%clk 0:00:06]} 27. Rxe8 {[%clk 0:00:03]}  Rxe8 {[%clk 0:00:06]} 28. Bc2 {[%clk 0:00:03]}  Kd7 {[%clk 0:00:00]} 29. Ba4+ {[%clk 0:00:03]} 1-0


[Site "https://www.chess.com"]

[Event "Titled Tuesday Blitz June 27 Late 2023"]
[White "Oliveira, Tiago Batista"]
[Black "Grischuk, Alexander"]
[WhiteFideId "2108291"]
[BlackFideId "4126025"]
[WhiteElo "2168"]
[BlackElo "3018"]
[Result "0-1"]
[Round "2"]
[TimeControl "180+2"]
[Date "2023.06.27"]
[WhiteClock "0:00:10"]
[BlackClock "0:01:32"]
[Board "89"]

1. d4 {[%clk 0:02:52]}  e6 {[%clk 0:02:59]} 2. c4 {[%clk 0:02:51]}  b6 {[%clk 0:02:59]} 3. Nf3 {[%clk 0:02:49]}  Bb7 {[%clk 0:02:59]} 4. g3 {[%clk 0:02:48]}  Bb4+ {[%clk 0:02:58]} 5. Bd2 {[%clk 0:02:47]}  Bxf3 {[%clk 0:02:58]} 6. exf3 {[%clk 0:02:47]}  Bxd2+ {[%clk 0:02:58]} 7. Qxd2 {[%clk 0:02:46]}  Ne7 {[%clk 0:02:59]} 8. Bd3 {[%clk 0:02:45]}  c6 {[%clk 0:02:58]} 9. Nc3 {[%clk 0:02:43]}  d5 {[%clk 0:02:58]} 10. b3 {[%clk 0:02:42]}  Nd7 {[%clk 0:02:50]} 11. O-O {[%clk 0:02:40]}  O-O {[%clk 0:02:48]} 12. Rad1 {[%clk 0:02:34]}  Nf6 {[%clk 0:02:48]} 13. Rfe1 {[%clk 0:02:30]}  Qd6 {[%clk 0:02:48]} 14. Re5 {[%clk 0:02:20]}  Rfd8 {[%clk 0:02:46]} 15. Qe2 {[%clk 0:02:13]}  g6 {[%clk 0:02:36]} 16. Qe3 {[%clk 0:02:08]}  Kg7 {[%clk 0:02:35]} 17. Ne2 {[%clk 0:02:02]}  a5 {[%clk 0:02:32]} 18. Nf4 {[%clk 0:01:57]}  dxc4 {[%clk 0:02:26]} 19. bxc4 {[%clk 0:01:45]}  Qxd4 {[%clk 0:02:06]} 20. Rxe6 {[%clk 0:01:39]}  Qxe3 {[%clk 0:02:05]} 21. Rxe3 {[%clk 0:01:38]}  Kf8 {[%clk 0:02:03]} 22. Rde1 {[%clk 0:01:35]}  Ra7 {[%clk 0:02:03]} 23. g4 {[%clk 0:01:26]}  Rd4 {[%clk 0:01:58]} 24. Ne2 {[%clk 0:01:18]}  Rd6 {[%clk 0:01:59]} 25. Nc3 {[%clk 0:00:39]}  Rad7 {[%clk 0:01:58]} 26. Bb1 {[%clk 0:00:33]}  Rd4 {[%clk 0:01:39]} 27. Na4 {[%clk 0:00:31]}  Rb7 {[%clk 0:01:39]} 28. Nxb6 {[%clk 0:00:30]}  Rxb6 {[%clk 0:01:39]} 29. Rxe7 {[%clk 0:00:26]}  Rxb1 {[%clk 0:01:39]} 30. g5 {[%clk 0:00:18]}  Rxe1+ {[%clk 0:01:37]} 31. Rxe1 {[%clk 0:00:19]}  Nh5 {[%clk 0:01:35]} 32. Rb1 {[%clk 0:00:17]}  Nf4 {[%clk 0:01:34]} 33. h4 {[%clk 0:00:15]}  Ne6 {[%clk 0:01:33]} 34. Rb6 {[%clk 0:00:14]}  Rxc4 {[%clk 0:01:33]} 35. Ra6 {[%clk 0:00:10]}  a4 {[%clk 0:01:32]} 0-1


[Site "https://www.chess.com"]

[Event "Titled Tuesday Blitz June 27 Late 2023"]
[White "Xiong, Jeffery"]
[Black "Tologon tegin, Semetei"]
[WhiteFideId "2047640"]
[BlackFideId "13800574"]
[WhiteElo "2926"]
[BlackElo "2532"]
[Result "1-0"]
[Round "2"]
[TimeControl "180+2"]
[Date "2023.06.27"]
[WhiteClock "0:00:54"]
[BlackClock "0:00:00"]
[Board "90"]

1. e4 {[%clk 0:03:00]}  c5 {[%clk 0:02:57]} 2. Nf3 {[%clk 0:03:00]}  Nc6 {[%clk 0:02:57]} 3. Bb5 {[%clk 0:03:00]}  d6 {[%clk 0:02:57]} 4. O-O {[%clk 0:03:00]}  Bd7 {[%clk 0:02:57]} 5. Re1 {[%clk 0:02:59]}  a6 {[%clk 0:02:52]} 6. Bxc6 {[%clk 0:02:59]}  Bxc6 {[%clk 0:02:52]} 7. d4 {[%clk 0:03:00]}  cxd4 {[%clk 0:02:51]} 8. Nxd4 {[%clk 0:03:00]}  Nf6 {[%clk 0:02:50]} 9. Nxc6 {[%clk 0:02:53]}  bxc6 {[%clk 0:02:50]} 10. c4 {[%clk 0:02:54]}  e5 {[%clk 0:02:37]} 11. Nc3 {[%clk 0:02:54]}  Be7 {[%clk 0:02:37]} 12. b3 {[%clk 0:02:54]}  O-O {[%clk 0:02:37]} 13. Qd3 {[%clk 0:02:49]}  Qc7 {[%clk 0:02:32]} 14. Be3 {[%clk 0:02:48]}  Nd7 {[%clk 0:02:31]} 15. Rad1 {[%clk 0:02:46]}  a5 {[%clk 0:02:19]} 16. Na4 {[%clk 0:02:47]}  Rfe8 {[%clk 0:02:14]} 17. Rc1 {[%clk 0:02:42]}  Rad8 {[%clk 0:02:11]} 18. Red1 {[%clk 0:02:39]}  Bf8 {[%clk 0:02:11]} 19. h3 {[%clk 0:02:38]}  Rb8 {[%clk 0:01:46]} 20. Qc2 {[%clk 0:02:02]}  Nf6 {[%clk 0:01:12]} 21. Bg5 {[%clk 0:02:02]}  Nd7 {[%clk 0:01:12]} 22. Be3 {[%clk 0:01:32]}  Nf6 {[%clk 0:01:11]} 23. Rd2 {[%clk 0:01:20]}  h6 {[%clk 0:01:10]} 24. Rcd1 {[%clk 0:01:20]}  Red8 {[%clk 0:00:52]} 25. Nc3 {[%clk 0:01:20]}  Qe7 {[%clk 0:00:42]} 26. Qd3 {[%clk 0:01:20]}  Qe6 {[%clk 0:00:41]} 27. Qe2 {[%clk 0:01:20]}  Rd7 {[%clk 0:00:41]} 28. Qf3 {[%clk 0:01:20]}  Rbb7 {[%clk 0:00:40]} 29. Na4 {[%clk 0:01:18]}  Rd8 {[%clk 0:00:36]} 30. g4 {[%clk 0:01:18]}  Rc8 {[%clk 0:00:24]} 31. Kh1 {[%clk 0:01:14]}  Be7 {[%clk 0:00:19]} 32. Rg1 {[%clk 0:01:11]}  g5 {[%clk 0:00:18]} 33. h4 {[%clk 0:01:08]}  Nh7 {[%clk 0:00:16]} 34. c5 {[%clk 0:01:05]}  dxc5 {[%clk 0:00:14]} 35. Nxc5 {[%clk 0:01:06]}  Bxc5 {[%clk 0:00:13]} 36. Bxc5 {[%clk 0:01:07]}  Nf8 {[%clk 0:00:12]} 37. Rd6 {[%clk 0:01:07]}  Qe7 {[%clk 0:00:12]} 38. Rxc6 {[%clk 0:01:03]}  Qxc5 {[%clk 0:00:11]} 39. Rxc5 {[%clk 0:01:03]}  Rxc5 {[%clk 0:00:12]} 40. hxg5 {[%clk 0:01:03]}  hxg5 {[%clk 0:00:12]} 41. Qf6 {[%clk 0:00:59]}  Ng6 {[%clk 0:00:05]} 42. Rd1 {[%clk 0:00:54]}  Rbc7 {[%clk 0:00:05]} 43. Kg2 {[%clk 0:00:53]}  Rc1 {[%clk 0:00:04]} 44. Rxc1 {[%clk 0:00:53]}  Rxc1 {[%clk 0:00:03]} 45. Qd8+ {[%clk 0:00:53]}  Kg7 {[%clk 0:00:02]} 46. Qxa5 {[%clk 0:00:54]}  Nf4+ {[%clk 0:00:00]} 47. Kh2 {[%clk 0:00:54]} 1-0


[Site "https://www.chess.com"]

[Event "Titled Tuesday Blitz June 27 Late 2023"]
[White "Ter-Sahakyan, Samvel"]
[Black "Rengifo Blancas, Renzo Jhonathan"]
[WhiteFideId "13302531"]
[BlackFideId "3807185"]
[WhiteElo "2903"]
[BlackElo "2495"]
[Result "1-0"]
[Round "2"]
[TimeControl "180+2"]
[Date "2023.06.27"]
[WhiteClock "0:01:01"]
[BlackClock "0:00:00"]
[Board "91"]

1. Nf3 {[%clk 0:02:59]}  d5 {[%clk 0:03:00]} 2. e3 {[%clk 0:02:58]}  Nf6 {[%clk 0:03:00]} 3. c4 {[%clk 0:02:58]}  e6 {[%clk 0:03:01]} 4. Nc3 {[%clk 0:02:58]}  c5 {[%clk 0:03:00]} 5. cxd5 {[%clk 0:02:57]}  exd5 {[%clk 0:03:01]} 6. Bb5+ {[%clk 0:02:56]}  Nc6 {[%clk 0:03:02]} 7. d4 {[%clk 0:02:50]}  Be7 {[%clk 0:03:01]} 8. O-O {[%clk 0:02:46]}  O-O {[%clk 0:03:01]} 9. dxc5 {[%clk 0:02:46]}  Bxc5 {[%clk 0:03:02]} 10. h3 {[%clk 0:02:46]}  Be6 {[%clk 0:03:01]} 11. b3 {[%clk 0:02:44]}  Qa5 {[%clk 0:02:44]} 12. Bb2 {[%clk 0:02:40]}  Ba3 {[%clk 0:02:44]} 13. Bxa3 {[%clk 0:02:35]}  Qxa3 {[%clk 0:02:43]} 14. Bd3 {[%clk 0:02:15]}  Qe7 {[%clk 0:02:37]} 15. Rc1 {[%clk 0:02:11]}  Rac8 {[%clk 0:02:37]} 16. Ne2 {[%clk 0:02:09]}  Ne4 {[%clk 0:02:34]} 17. Ned4 {[%clk 0:02:02]}  Nb4 {[%clk 0:02:28]} 18. Bb1 {[%clk 0:01:59]}  Qf6 {[%clk 0:01:54]} 19. Qe2 {[%clk 0:01:56]}  Nc3 {[%clk 0:01:51]} 20. Qd2 {[%clk 0:01:54]}  Nxb1 {[%clk 0:01:21]} 21. Qxb4 {[%clk 0:01:53]}  Rxc1 {[%clk 0:01:18]} 22. Rxc1 {[%clk 0:01:52]}  Qg6 {[%clk 0:01:17]} 23. Kh1 {[%clk 0:01:24]}  h5 {[%clk 0:00:58]} 24. Qxb7 {[%clk 0:01:21]}  Qd3 {[%clk 0:00:51]} 25. Qb4 {[%clk 0:01:16]}  Rd8 {[%clk 0:00:28]} 26. Nxe6 {[%clk 0:01:12]}  fxe6 {[%clk 0:00:28]} 27. Qe7 {[%clk 0:01:12]}  Rf8 {[%clk 0:00:18]} 28. Qxe6+ {[%clk 0:01:12]}  Kh8 {[%clk 0:00:18]} 29. Ne5 {[%clk 0:01:11]}  Qf5 {[%clk 0:00:05]} 30. Ng6+ {[%clk 0:01:11]}  Kh7 {[%clk 0:00:04]} 31. Nxf8+ {[%clk 0:01:11]}  Qxf8 {[%clk 0:00:05]} 32. Rxb1 {[%clk 0:01:11]}  Qxf2 {[%clk 0:00:06]} 33. Qxd5 {[%clk 0:01:10]}  h4 {[%clk 0:00:06]} 34. Qh5+ {[%clk 0:01:07]}  Kg8 {[%clk 0:00:06]} 35. Qe8+ {[%clk 0:01:07]}  Kh7 {[%clk 0:00:06]} 36. Qe4+ {[%clk 0:01:06]}  Kg8 {[%clk 0:00:06]} 37. Rd1 {[%clk 0:01:06]}  Qf8 {[%clk 0:00:03]} 38. Qd5+ {[%clk 0:01:03]}  Kh7 {[%clk 0:00:02]} 39. Qh5+ {[%clk 0:01:03]}  Kg8 {[%clk 0:00:02]} 40. Qxh4 {[%clk 0:01:03]}  Qb4 {[%clk 0:00:00]} 41. Qxb4 {[%clk 0:01:01]} 1-0


[Site "https://www.chess.com"]

[Event "Titled Tuesday Blitz June 27 Late 2023"]
[White "Bordi, Kevin"]
[Black "Zavortink, Matt"]
[WhiteFideId "621862"]
[BlackFideId "2034263"]
[WhiteElo "2852"]
[BlackElo "2488"]
[Result "1-0"]
[Round "2"]
[TimeControl "180+2"]
[Date "2023.06.27"]
[WhiteClock "0:01:17"]
[BlackClock "0:00:22"]
[Board "92"]

1. e4 {[%clk 0:03:00]}  c5 {[%clk 0:02:59]} 2. Nf3 {[%clk 0:03:01]}  e6 {[%clk 0:02:59]} 3. b4 {[%clk 0:03:00]}  b6 {[%clk 0:02:57]} 4. bxc5 {[%clk 0:03:00]}  bxc5 {[%clk 0:02:57]} 5. Nc3 {[%clk 0:03:01]}  Bb7 {[%clk 0:02:55]} 6. Rb1 {[%clk 0:03:01]}  Qc7 {[%clk 0:02:49]} 7. Nb5 {[%clk 0:03:00]}  Qc8 {[%clk 0:02:49]} 8. e5 {[%clk 0:02:57]}  Nc6 {[%clk 0:02:45]} 9. Ba3 {[%clk 0:02:47]}  Nh6 {[%clk 0:02:31]} 10. Nd6+ {[%clk 0:02:44]}  Bxd6 {[%clk 0:02:31]} 11. exd6 {[%clk 0:02:45]}  Nd4 {[%clk 0:02:12]} 12. Nxd4 {[%clk 0:02:41]}  cxd4 {[%clk 0:02:12]} 13. Bd3 {[%clk 0:02:39]}  Qc6 {[%clk 0:02:05]} 14. f3 {[%clk 0:02:33]}  Rb8 {[%clk 0:02:00]} 15. Qe2 {[%clk 0:02:31]}  O-O {[%clk 0:01:53]} 16. O-O {[%clk 0:02:25]}  Qa4 {[%clk 0:01:44]} 17. Bc5 {[%clk 0:01:52]}  Bd5 {[%clk 0:01:31]} 18. a3 {[%clk 0:01:35]}  Rfc8 {[%clk 0:01:24]} 19. Qe5 {[%clk 0:01:25]}  Qa5 {[%clk 0:00:31]} 20. Qxd4 {[%clk 0:01:23]}  Qxd2 {[%clk 0:00:25]} 21. Rxb8 {[%clk 0:01:17]}  Rxb8 {[%clk 0:00:22]} 22. Bxh7+ {[%clk 0:01:17]} 1-0


[Site "https://www.chess.com"]

[Event "Titled Tuesday Blitz June 27 Late 2023"]
[White "Perez Ponsa, Federico"]
[Black "NLLO777"]
[WhiteFideId "117927"]
[WhiteElo "2791"]
[BlackElo "2460"]
[Result "1-0"]
[Round "2"]
[TimeControl "180+2"]
[Date "2023.06.27"]
[WhiteClock "0:01:23"]
[BlackClock "0:00:10"]
[Board "93"]

1. e4 {[%clk 0:02:55]}  c5 {[%clk 0:02:58]} 2. Nf3 {[%clk 0:02:55]}  d6 {[%clk 0:02:58]} 3. c3 {[%clk 0:02:55]}  Nf6 {[%clk 0:02:57]} 4. Bd3 {[%clk 0:02:55]}  Bg4 {[%clk 0:02:49]} 5. h3 {[%clk 0:02:51]}  Bh5 {[%clk 0:02:49]} 6. O-O {[%clk 0:02:50]}  e6 {[%clk 0:02:45]} 7. Re1 {[%clk 0:02:48]}  Be7 {[%clk 0:02:44]} 8. Bf1 {[%clk 0:02:47]}  Nc6 {[%clk 0:02:43]} 9. d3 {[%clk 0:02:46]}  O-O {[%clk 0:02:43]} 10. Nbd2 {[%clk 0:02:46]}  d5 {[%clk 0:02:41]} 11. g4 {[%clk 0:02:45]}  Bg6 {[%clk 0:02:29]} 12. Nh4 {[%clk 0:02:45]}  dxe4 {[%clk 0:02:10]} 13. dxe4 {[%clk 0:02:35]}  Bxe4 {[%clk 0:01:52]} 14. g5 {[%clk 0:02:34]}  Bd3 {[%clk 0:01:25]} 15. gxf6 {[%clk 0:02:29]}  Bxf6 {[%clk 0:01:26]} 16. Ng2 {[%clk 0:02:27]}  Bxf1 {[%clk 0:01:24]} 17. Nxf1 {[%clk 0:02:25]}  Qe7 {[%clk 0:01:25]} 18. Ng3 {[%clk 0:02:20]}  Rfd8 {[%clk 0:01:24]} 19. Qe2 {[%clk 0:02:19]}  Ne5 {[%clk 0:01:17]} 20. Be3 {[%clk 0:02:11]}  c4 {[%clk 0:01:13]} 21. Rad1 {[%clk 0:02:05]}  b5 {[%clk 0:01:04]} 22. Ne4 {[%clk 0:02:03]}  Nd3 {[%clk 0:00:54]} 23. Rf1 {[%clk 0:01:38]}  a6 {[%clk 0:00:45]} 24. Nf4 {[%clk 0:01:34]}  Nxf4 {[%clk 0:00:25]} 25. Bxf4 {[%clk 0:01:34]}  Rd5 {[%clk 0:00:18]} 26. Nxf6+ {[%clk 0:01:27]}  Qxf6 {[%clk 0:00:18]} 27. Rxd5 {[%clk 0:01:26]}  exd5 {[%clk 0:00:19]} 28. Be3 {[%clk 0:01:26]}  Re8 {[%clk 0:00:19]} 29. Qg4 {[%clk 0:01:27]}  g6 {[%clk 0:00:15]} 30. Bd4 {[%clk 0:01:26]}  Qe6 {[%clk 0:00:16]} 31. Qxe6 {[%clk 0:01:24]}  Rxe6 {[%clk 0:00:16]} 32. Be3 {[%clk 0:01:22]}  f6 {[%clk 0:00:16]} 33. Rd1 {[%clk 0:01:23]}  Rd6 {[%clk 0:00:16]} 34. Kg2 {[%clk 0:01:23]}  Kf7 {[%clk 0:00:16]} 35. Bc5 {[%clk 0:01:23]}  Rd7 {[%clk 0:00:16]} 36. Kf3 {[%clk 0:01:24]}  g5 {[%clk 0:00:16]} 37. Re1 {[%clk 0:01:23]}  h6 {[%clk 0:00:16]} 38. a3 {[%clk 0:01:22]}  h5 {[%clk 0:00:14]} 39. Bd4 {[%clk 0:01:22]}  Kg6 {[%clk 0:00:12]} 40. Re6 {[%clk 0:01:22]}  Rf7 {[%clk 0:00:12]} 41. Rxa6 {[%clk 0:01:23]}  Kf5 {[%clk 0:00:12]} 42. Rd6 {[%clk 0:01:23]}  Rd7 {[%clk 0:00:10]} 43. Rxd7 {[%clk 0:01:23]} 1-0


[Site "https://www.chess.com"]

[Event "Titled Tuesday Blitz June 27 Late 2023"]
[White "Hambleton, Aman"]
[Black "Remolar Gallen, Jose"]
[WhiteFideId "2606577"]
[BlackFideId "2215187"]
[WhiteElo "2715"]
[BlackElo "2443"]
[Result "0-1"]
[Round "2"]
[TimeControl "180+2"]
[Date "2023.06.27"]
[WhiteClock "0:00:00"]
[BlackClock "0:00:04"]
[Board "95"]

1. d4 {[%clk 0:03:00]}  Nf6 {[%clk 0:02:59]} 2. c4 {[%clk 0:03:00]}  g6 {[%clk 0:02:59]} 3. Nc3 {[%clk 0:03:00]}  d5 {[%clk 0:02:58]} 4. cxd5 {[%clk 0:03:01]}  Nxd5 {[%clk 0:02:59]} 5. Bd2 {[%clk 0:03:02]}  Bg7 {[%clk 0:02:59]} 6. e4 {[%clk 0:03:02]}  Nxc3 {[%clk 0:02:59]} 7. Bxc3 {[%clk 0:03:03]}  O-O {[%clk 0:02:53]} 8. Qd2 {[%clk 0:03:00]}  Nd7 {[%clk 0:02:47]} 9. Nf3 {[%clk 0:02:44]}  b6 {[%clk 0:02:27]} 10. Bd3 {[%clk 0:02:31]}  e6 {[%clk 0:02:19]} 11. Bb5 {[%clk 0:01:28]}  Bb7 {[%clk 0:02:15]} 12. Qe3 {[%clk 0:01:19]}  Nf6 {[%clk 0:01:45]} 13. Bd3 {[%clk 0:01:19]}  c5 {[%clk 0:01:30]} 14. dxc5 {[%clk 0:01:02]}  bxc5 {[%clk 0:01:28]} 15. Rd1 {[%clk 0:00:29]}  Qb6 {[%clk 0:01:15]} 16. O-O {[%clk 0:00:26]}  c4 {[%clk 0:00:55]} 17. Bd4 {[%clk 0:00:19]}  Qa6 {[%clk 0:00:54]} 18. Bb1 {[%clk 0:00:17]}  Rfd8 {[%clk 0:00:45]} 19. Qc3 {[%clk 0:00:09]}  Ne8 {[%clk 0:00:30]} 20. Bxg7 {[%clk 0:00:09]}  Nxg7 {[%clk 0:00:31]} 21. Ne5 {[%clk 0:00:10]}  h5 {[%clk 0:00:15]} 22. Nd7 {[%clk 0:00:04]}  Ne8 {[%clk 0:00:15]} 23. Nc5 {[%clk 0:00:03]}  Qc6 {[%clk 0:00:15]} 24. Nxb7 {[%clk 0:00:03]}  Qxb7 {[%clk 0:00:16]} 25. h4 {[%clk 0:00:02]}  Rab8 {[%clk 0:00:15]} 26. Rd2 {[%clk 0:00:01]}  Rxd2 {[%clk 0:00:15]} 27. Qxd2 {[%clk 0:00:02]}  Qxb2 {[%clk 0:00:15]} 28. Qa5 {[%clk 0:00:02]}  Qb6 {[%clk 0:00:07]} 29. Qe5 {[%clk 0:00:02]}  Qb5 {[%clk 0:00:06]} 30. Qc3 {[%clk 0:00:02]}  Qb4 {[%clk 0:00:06]} 31. Qe5 {[%clk 0:00:02]}  Qd6 {[%clk 0:00:07]} 32. Qc3 {[%clk 0:00:01]}  Qc5 {[%clk 0:00:04]} 33. Rc1 {[%clk 0:00:01]}  Rc8 {[%clk 0:00:05]} 34. Bd3 {[%clk 0:00:01]}  Nd6 {[%clk 0:00:05]} 35. Be2 {[%clk 0:00:01]}  e5 {[%clk 0:00:05]} 36. Bf3 {[%clk 0:00:02]}  Nb5 {[%clk 0:00:05]} 37. Qa5 {[%clk 0:00:02]}  Nd4 {[%clk 0:00:05]} 38. Qa6 {[%clk 0:00:03]}  Nxf3+ {[%clk 0:00:05]} 39. gxf3 {[%clk 0:00:04]}  c3 {[%clk 0:00:05]} 40. Rc2 {[%clk 0:00:04]}  Rd8 {[%clk 0:00:04]} 41. Kg2 {[%clk 0:00:04]}  Rd2 {[%clk 0:00:03]} 42. Rc1 {[%clk 0:00:00]}  Qxf2+ {[%clk 0:00:04]} 0-1


[Site "https://www.chess.com"]

[Event "Titled Tuesday Blitz June 27 Late 2023"]
[White "Cugimura97"]
[Black "Gatterer, Florian"]
[BlackFideId "811688"]
[WhiteElo "2695"]
[BlackElo "2410"]
[Result "1-0"]
[Round "2"]
[TimeControl "180+2"]
[Date "2023.06.27"]
[WhiteClock "0:00:40"]
[BlackClock "0:00:00"]
[Board "97"]

1. d4 {[%clk 0:03:00]}  d5 {[%clk 0:02:51]} 2. c4 {[%clk 0:03:00]}  c6 {[%clk 0:02:51]} 3. cxd5 {[%clk 0:03:00]}  cxd5 {[%clk 0:02:51]} 4. Nc3 {[%clk 0:03:01]}  Nf6 {[%clk 0:02:51]} 5. Bf4 {[%clk 0:03:01]}  Nc6 {[%clk 0:02:51]} 6. e3 {[%clk 0:03:01]}  Bf5 {[%clk 0:02:51]} 7. Qb3 {[%clk 0:03:01]}  Na5 {[%clk 0:02:51]} 8. Qa4+ {[%clk 0:03:01]}  Bd7 {[%clk 0:02:51]} 9. Bb5 {[%clk 0:03:01]}  Nc6 {[%clk 0:02:43]} 10. Nf3 {[%clk 0:03:01]}  a6 {[%clk 0:02:43]} 11. Bxc6 {[%clk 0:03:00]}  Bxc6 {[%clk 0:02:43]} 12. Qc2 {[%clk 0:03:01]}  e6 {[%clk 0:02:43]} 13. O-O {[%clk 0:03:02]}  Bd6 {[%clk 0:02:43]} 14. Ne5 {[%clk 0:03:01]}  Bxe5 {[%clk 0:02:42]} 15. Bxe5 {[%clk 0:03:02]}  O-O {[%clk 0:02:40]} 16. Rac1 {[%clk 0:03:02]}  Rc8 {[%clk 0:02:40]} 17. Qb3 {[%clk 0:03:01]}  Ne4 {[%clk 0:02:28]} 18. Nxe4 {[%clk 0:02:50]}  dxe4 {[%clk 0:02:28]} 19. Rc5 {[%clk 0:02:44]}  Bd5 {[%clk 0:02:27]} 20. Qa3 {[%clk 0:02:44]}  Rxc5 {[%clk 0:02:26]} 21. dxc5 {[%clk 0:02:45]}  Qd7 {[%clk 0:02:20]} 22. Qa5 {[%clk 0:02:36]}  Qc6 {[%clk 0:02:14]} 23. a4 {[%clk 0:02:31]}  Rc8 {[%clk 0:02:11]} 24. b4 {[%clk 0:02:25]}  Bb3 {[%clk 0:02:02]} 25. Ra1 {[%clk 0:02:08]}  f6 {[%clk 0:01:59]} 26. Bd6 {[%clk 0:02:00]}  Bc4 {[%clk 0:01:56]} 27. h3 {[%clk 0:01:58]}  Kf7 {[%clk 0:01:55]} 28. Rb1 {[%clk 0:01:57]}  b5 {[%clk 0:01:33]} 29. axb5 {[%clk 0:01:42]}  Bxb5 {[%clk 0:01:27]} 30. Qa3 {[%clk 0:01:42]}  Qd5 {[%clk 0:01:20]} 31. Qc3 {[%clk 0:01:41]}  Qc4 {[%clk 0:01:14]} 32. Qa3 {[%clk 0:01:37]}  g5 {[%clk 0:01:12]} 33. Rc1 {[%clk 0:01:35]}  Qd5 {[%clk 0:01:07]} 34. Qc3 {[%clk 0:01:34]}  Kg6 {[%clk 0:01:03]} 35. Qc2 {[%clk 0:01:31]}  Qd3 {[%clk 0:01:03]} 36. Qa2 {[%clk 0:01:29]}  Qd5 {[%clk 0:01:01]} 37. Qa1 {[%clk 0:01:29]}  h5 {[%clk 0:00:59]} 38. Rd1 {[%clk 0:01:28]}  Qf5 {[%clk 0:00:49]} 39. Qd4 {[%clk 0:01:25]}  h4 {[%clk 0:00:29]} 40. Be7 {[%clk 0:01:22]}  e5 {[%clk 0:00:22]} 41. Qd5 {[%clk 0:01:19]}  Bc6 {[%clk 0:00:20]} 42. Qa2 {[%clk 0:01:12]}  Bb5 {[%clk 0:00:18]} 43. Rd6 {[%clk 0:01:12]}  Re8 {[%clk 0:00:16]} 44. Rxf6+ {[%clk 0:01:11]}  Qxf6 {[%clk 0:00:17]} 45. Bxf6 {[%clk 0:01:12]}  Kxf6 {[%clk 0:00:17]} 46. Qd5 {[%clk 0:01:12]}  Re6 {[%clk 0:00:17]} 47. Qxe4 {[%clk 0:01:10]}  Bc6 {[%clk 0:00:17]} 48. Qh7 {[%clk 0:01:09]}  Bb5 {[%clk 0:00:15]} 49. Qh6+ {[%clk 0:01:09]}  Kf7 {[%clk 0:00:15]} 50. Qxg5 {[%clk 0:01:09]}  Rg6 {[%clk 0:00:14]} 51. Qxh4 {[%clk 0:01:08]}  Bc6 {[%clk 0:00:13]} 52. Qh7+ {[%clk 0:01:06]}  Kf6 {[%clk 0:00:13]} 53. Qh8+ {[%clk 0:01:05]}  Ke6 {[%clk 0:00:12]} 54. g4 {[%clk 0:01:01]}  Kd5 {[%clk 0:00:11]} 55. Kg2 {[%clk 0:00:54]}  Kc4+ {[%clk 0:00:10]} 56. Kg3 {[%clk 0:00:55]}  Kxb4 {[%clk 0:00:09]} 57. Qxe5 {[%clk 0:00:55]}  Rg8 {[%clk 0:00:08]} 58. Qd4+ {[%clk 0:00:52]}  Kb5 {[%clk 0:00:07]} 59. f4 {[%clk 0:00:51]}  a5 {[%clk 0:00:07]} 60. f5 {[%clk 0:00:50]}  Re8 {[%clk 0:00:07]} 61. f6 {[%clk 0:00:48]}  a4 {[%clk 0:00:07]} 62. f7 {[%clk 0:00:48]}  Rf8 {[%clk 0:00:07]} 63. Qd3+ {[%clk 0:00:47]}  Kb4 {[%clk 0:00:07]} 64. Qd2+ {[%clk 0:00:47]}  Kb3 {[%clk 0:00:07]} 65. Qd3+ {[%clk 0:00:46]}  Kb4 {[%clk 0:00:07]} 66. Qd4+ {[%clk 0:00:44]}  Kb3 {[%clk 0:00:07]} 67. Qg7 {[%clk 0:00:45]}  Rb8 {[%clk 0:00:01]} 68. f8=Q {[%clk 0:00:44]}  Rb7 {[%clk 0:00:01]} 69. Qfg8+ {[%clk 0:00:41]}  Kc2 {[%clk 0:00:01]} 70. Qd4 {[%clk 0:00:40]}  Kc1 {[%clk 0:00:00]} 71. Qgc4+ {[%clk 0:00:40]} 1-0


[Site "https://www.chess.com"]